bitfinex/quotes_SOLUSD_20241231
["timestamp","ask_amount","ask_price","bid_price","bid_amount"]
[1735605503304,20.0,191.46,191.33,6.2455]
[1735605503305,2.6116,191.45,191.33,6.2455]
[1735605504214,2.6108,191.51,191.34,1.6627]
[1735605504527,2.6108,191.51,191.35,16.4903132]
[1735605504929,20.0,191.49,191.36,16.4903132]
[1735605505238,20.0,191.49,191.34,15.51212917]
[1735605505239,2.6104,191.54,191.38,16.4903132]
[1735605505537,23.776884,191.53,191.39,17.27376526]
[1735605505718,20.0,191.52,191.39,0.78345206]
[1735605505914,2.6104,191.54,191.39,0.78345206]
[1735605506103,2.6104,191.54,191.41,1.6627]
[1735605506434,20.0,191.5,191.41,1.6627]
[1735605507016,22.6104,191.54,191.41,1.6627]
[1735605507733,20.0,191.5,191.41,1.6627]
[1735605511637,1.6532,191.62,191.42,42.6275132]
[1735605511866,2.61,191.57,191.43,16.4903132]
[1735605512034,2.61,191.57,191.44,1.6627]
[1735605513049,22.697413,191.61,191.47,21.6627]
[1735605513050,2.6095,191.61,191.47,21.6627]
[1735605514260,43.776884,191.6,191.47,1.6627]
[1735605514467,20.0,191.58,191.47,1.6627]
[1735605515364,20.0,191.58,191.48,43.88973396]
[1735605515559,23.776884,191.6,191.48,43.88973396]
[1735605515767,23.776884,191.6,191.49,1.6083]
[1735605515934,20.0,191.58,191.49,1.6083]
[1735605516663,20.0,191.58,191.5,16.4903132]
[1735605516834,18.74191639,191.69,191.53,18.0986132]
[1735605516835,9.59599873,191.69,191.53,18.0986132]
[1735605517041,1.5948,191.7,191.53,18.88151025]
[1735605517356,1.5948,191.7,191.53,2.39119705]
[1735605517750,20.0,191.63,191.53,2.39119705]
[1735605517953,20.0,191.67,191.53,2.39119705]
[1735605518139,20.0,191.69,191.53,2.39119705]
[1735605518346,20.0,191.69,191.55,18.0986132]
[1735605518347,2.6084,191.69,191.55,18.0986132]
[1735605518658,2.6084,191.69,191.56,17.27305914]
[1735605518659,20.0,191.65,191.56,17.27305914]
[1735605518863,20.0,191.65,191.56,0.78274594]
[1735605519236,2.6084,191.69,191.56,0.78274594]
[1735605519450,20.0,191.65,191.56,0.78274594]
[1735605520654,5.2156,191.73,191.56,0.78274594]
[1735605520655,20.0,191.66,191.56,0.78274594]
[1735605520864,23.776884,191.69,191.56,0.78274594]
[1735605521361,23.776884,191.69,191.57,6.3277]
[1735605522147,20.0,191.72,191.58,1.5489]
[1735605522655,43.776884,191.69,191.58,1.5489]
[1735605523237,2.6078,191.73,191.6,16.4903132]
[1735605523459,23.776884,191.72,191.61,6.3277]
[1735605523633,23.776884,191.72,191.62,1.5489]
[1735605525261,7.8215,191.78,191.62,1.5489]
[1735605525462,2.6071,191.78,191.64,6.3277]
[1735605526470,20.0,191.74,191.64,6.3277]
[1735605528142,20.0,191.74,191.65,2.33131544]
[1735605529560,20.0,191.74,191.65,18.82162864]
[1735605530064,20.0,191.74,191.65,2.33131544]
[1735605531469,20.0,191.7,191.65,1.5489]
[1735605534169,22.6074,191.76,191.65,1.5489]
[1735605534846,2.6074,191.76,191.65,1.5489]
[1735605535169,20.0,191.72,191.65,1.5489]
[1735605539385,23.776884,191.71,191.65,1.5489]
[1735605539573,23.776884,191.67,191.57,7.8979]
[1735605540653,2.6081,191.71,191.57,7.8979]
[1735605541673,2.6081,191.71,191.57,24.3882132]
[1735605542185,20.0,191.69,191.58,0.7826531]
[1735605542564,20.0,191.69,191.57,24.3882132]
[1735605542954,20.0,191.69,191.57,7.8979]
[1735605546381,20.0,191.69,191.57,24.3882132]
[1735605547774,20.0,191.69,191.57,7.8979]
[1735605548079,20.0,191.65,191.57,7.8979]
[1735605549280,2.6079,191.72,191.57,18.3936337]
[1735605550459,20.0,191.74,191.61,20.0]
[1735605550653,20.0,191.74,191.63,10.4957337]
[1735605550989,20.0,191.76,191.65,1.5097]
[1735605551157,20.0,191.76,191.65,2.29207249]
[1735605552078,20.0,191.75,191.65,2.29207249]
[1735605553172,20.0,191.75,191.66,6.3831]
[1735605555483,20.0,191.71,191.66,6.3831]
[1735605557082,20.0,191.73,191.66,6.3831]
[1735605558280,43.776884,191.72,191.66,6.3831]
[1735605558473,20.0,191.7,191.66,6.3831]
[1735605559382,43.776884,191.69,191.66,6.3831]
[1735605559587,1.6167,191.83,191.65,1.5097]
[1735605559970,23.776884,191.75,191.65,1.5097]
[1735605562388,20.0,191.81,191.66,6.4461]
[1735605562692,20.0,191.79,191.66,6.4461]
[1735605562868,20.0,191.73,191.66,6.4461]
[1735605564298,20.0,191.69,191.66,6.4461]
[1735605565072,20.0,191.75,191.66,6.4461]
[1735605565267,23.776884,191.7,191.66,6.4461]
[1735605565472,20.0,191.67,191.65,1.5097]
[1735605572501,23.776884,191.7,191.65,1.5097]
[1735605572994,20.0,191.67,191.65,1.5097]
[1735605576695,20.0,191.67,191.61,6.4461]
[1735605578076,20.0,191.71,191.61,16.936926]
[1735605578279,20.0,191.71,191.62,10.490826]
[1735605578710,20.0,191.71,191.61,17.71954963]
[1735605578899,43.776884,191.73,191.61,17.71954963]
[1735605579110,43.776884,191.73,191.62,10.490826]
[1735605581901,43.776884,191.73,191.61,17.71954963]
[1735605582307,20.0,191.75,191.62,10.490826]
[1735605582806,2.6073,191.77,191.62,10.490826]
[1735605582807,20.0,191.71,191.62,10.490826]
[1735605583707,20.0,191.71,191.61,17.71954963]
[1735605589218,20.0,191.71,191.62,10.490826]
[1735605590312,20.0,191.71,191.61,17.71954963]
[1735605591725,20.0,191.71,191.62,10.490826]
[1735605593411,20.0,191.71,191.63,11.27335781]
[1735605593716,20.0,191.71,191.62,10.490826]
[1735605596139,23.776884,191.76,191.62,10.490826]
[1735605596426,20.0,191.73,191.61,7.22856972]
[1735605596635,20.0,191.73,191.62,10.490826]
[1735605597937,20.0,191.73,191.61,17.71939572]
[1735605598803,20.0,191.73,191.62,10.490826]
[1735605599842,20.0,191.73,191.63,11.2733498]
[1735605601129,20.0,191.73,191.63,0.7825238]
[1735605601429,20.0,191.73,191.64,20.0]
[1735605606731,23.776884,191.74,191.66,20.0]
[1735605608131,23.776884,191.74,191.64,30.490826]
[1735605608341,8.14395618,191.77,191.66,10.490826]
[1735605608640,23.776884,191.76,191.67,20.0]
[1735605608934,23.776884,191.76,191.62,11.2732259]
[1735605609135,20.0,191.76,191.65,20.0]
[1735605609443,20.0,191.76,191.66,10.490826]
[1735605609632,2.607,191.79,191.66,11.27323047]
[1735605609938,20.0,191.78,191.66,11.27323047]
[1735605610707,23.776884,191.77,191.66,11.27323047]
[1735605611613,20.0,191.78,191.67,10.490826]
[1735605612227,20.0,191.78,191.68,10.490826]
[1735605612940,20.0,191.78,191.67,11.999126]
[1735605613341,20.0,191.78,191.69,10.490826]
[1735605613541,20.0,191.78,191.68,11.2731938]
[1735605613730,20.0,191.78,191.68,10.490826]
[1735605616744,20.0,191.78,191.69,10.490826]
[1735605617229,1.6335,191.8,191.69,10.490826]
[1735605617530,9.69575618,191.85,191.71,10.490826]
[1735605617844,9.69575618,191.85,191.73,10.490826]
[1735605618547,20.0,191.82,191.73,10.490826]
[1735605619248,23.776884,191.84,191.73,10.490826]
[1735605619619,20.0,191.81,191.73,10.490826]
[1735605619818,23.776884,191.84,191.73,10.490826]
[1735605620042,20.0,191.81,191.73,10.490826]
[1735605620217,20.0,191.81,191.72,30.490826]
[1735605621241,23.776884,191.84,191.73,10.490826]
[1735605622547,23.776884,191.84,191.72,20.0]
[1735605622726,23.776884,191.8,191.68,6.2939]
[1735605623127,23.776884,191.82,191.68,6.2939]
[1735605623340,20.0,191.8,191.68,16.784726]
[1735605625047,23.776884,191.8,191.68,16.784726]
[1735605625641,23.776884,191.8,191.68,6.2939]
[1735605626425,23.776884,191.8,191.68,16.784726]
[1735605626733,23.776884,191.8,191.69,10.490826]
[1735605626930,23.776884,191.8,191.7,10.490826]
[1735605629346,2.6063,191.84,191.71,10.490826]
[1735605629558,2.6063,191.84,191.73,10.490826]
[1735605630062,20.0,191.85,191.74,17.043626]
[1735605630561,22.6059,191.87,191.74,6.5528]
[1735605631258,22.6059,191.87,191.74,17.043626]
[1735605631259,20.0,191.83,191.74,17.043626]
[1735605631436,23.776884,191.82,191.74,6.5528]
[1735605632048,20.0,191.79,191.74,6.5528]
[1735605632359,23.776884,191.82,191.74,6.5528]
[1735605634664,20.0,191.79,191.7,6.1339]
[1735605635654,23.776884,191.78,191.7,6.1339]
[1735605636568,23.776884,191.74,191.65,6.1339]
[1735605638153,20.0,191.71,191.65,6.1339]
[1735605638358,23.776884,191.7,191.64,1.5771]
[1735605639053,2.6074,191.76,191.64,12.067926]
[1735605639254,20.0,191.73,191.64,12.067926]
[1735605642441,23.776884,191.72,191.64,1.5771]
[1735605643543,23.776884,191.68,191.6,7.711]
[1735605645360,22.608,191.72,191.6,7.711]
[1735605645654,20.0,191.68,191.6,7.711]
[1735605646553,20.0,191.68,191.6,18.201826]
[1735605648062,1.5373,191.74,191.61,10.490826]
[1735605648258,23.776884,191.73,191.61,10.490826]
[1735605648563,20.0,191.7,191.61,10.490826]
[1735605652665,20.0,191.7,191.62,10.490826]
[1735605652867,20.0,191.7,191.63,10.490826]
[1735605655256,20.0,191.7,191.62,10.490826]
[1735605655458,20.0,191.7,191.61,10.490826]
[1735605655962,20.0,191.7,191.6,7.711]
[1735605656159,23.776884,191.69,191.6,7.711]
[1735605658665,23.776884,191.67,191.6,7.711]
[1735605658837,20.0,191.64,191.6,7.711]
[1735605659368,20.0,191.64,191.55,7.9654]
[1735605660866,2.6085,191.68,191.55,7.9654]
[1735605660867,23.776884,191.65,191.55,18.456226]
[1735605661160,23.776884,191.65,191.56,10.490826]
[1735605661363,22.6084,191.69,191.56,10.490826]
[1735605661750,20.0,191.65,191.56,10.490826]
[1735605662970,20.0,191.65,191.55,7.9654]
[1735605663145,23.776884,191.68,191.58,10.490826]
[1735605663549,20.0,191.71,191.58,10.490826]
[1735605663869,20.0,191.67,191.56,13.0507]
[1735605664048,20.0,191.67,191.56,23.541526]
[1735605665478,23.776884,191.66,191.56,10.490826]
[1735605665655,23.776884,191.66,191.55,18.456226]
[1735605665851,20.0,191.63,191.55,7.9654]
[1735605666572,23.776884,191.62,191.55,7.9654]
[1735605667774,20.0,191.67,191.55,18.456226]
[1735605668076,20.0,191.67,191.57,10.490826]
[1735605668753,20.0,191.68,191.58,10.490826]
[1735605668955,20.0,191.68,191.59,10.490826]
[1735605669175,2.6076,191.75,191.63,10.490826]
[1735605669558,23.776884,191.74,191.63,10.490826]
[1735605669888,20.0,191.71,191.63,10.490826]
[1735605670553,20.0,191.71,191.61,16.547326]
[1735605670752,20.0,191.71,191.62,10.490826]
[1735605671679,20.0,191.71,191.61,16.547326]
[1735605672179,20.0,191.71,191.62,10.490826]
[1735605673277,20.0,191.71,191.61,16.547326]
[1735605674080,20.0,191.71,191.62,10.490826]
[1735605675081,20.0,191.71,191.61,16.547326]
[1735605676684,2.608,191.72,191.61,6.0565]
[1735605676990,2.608,191.72,191.61,16.547326]
[1735605677183,23.776884,191.71,191.61,16.547326]
[1735605682072,23.776884,191.71,191.61,6.0565]
[1735605682278,20.0,191.68,191.61,6.0565]
[1735605684586,23.776884,191.67,191.61,6.0565]
[1735605686076,2.6082,191.71,191.61,6.0565]
[1735605686587,23.776884,191.7,191.61,6.0565]
[1735605687670,20.0,191.72,191.61,16.547326]
[1735605687984,20.0,191.68,191.61,6.0565]
[1735605689591,2.6076,191.75,191.61,16.547326]
[1735605689788,2.6076,191.75,191.63,10.490826]
[1735605689982,8.14395618,191.76,191.66,1.5803]
[1735605690185,8.14395618,191.76,191.67,16.595926]
[1735605690487,20.0,191.75,191.67,6.1051]
[1735605692191,43.776884,191.75,191.67,6.1051]
[1735605692396,23.776884,191.75,191.67,6.1051]
[1735605692773,23.776884,191.74,191.67,6.1051]
[1735605692967,23.776884,191.75,191.67,6.1051]
[1735605693589,2.6076,191.74,191.67,6.1051]
[1735605694668,2.6076,191.74,191.66,1.5803]
[1735605694887,23.776884,191.72,191.66,1.5803]
[1735605695493,23.776884,191.73,191.66,1.5803]
[1735605696985,23.776884,191.7,191.62,7.7703]
[1735605697191,23.776884,191.71,191.62,7.7703]
[1735605697574,8.14395618,191.77,191.62,18.261126]
[1735605697575,2.6075,191.75,191.62,18.261126]
[1735605698172,10.75105618,191.78,191.65,10.490826]
[1735605698374,10.75105618,191.78,191.65,30.490826]
[1735605698774,10.75105618,191.78,191.62,8.55290472]
[1735605698775,23.776884,191.77,191.67,20.0]
[1735605699381,23.776884,191.73,191.63,10.490826]
[1735605699581,23.776884,191.73,191.64,10.490826]
[1735605699791,2.6071,191.78,191.64,10.490826]
[1735605700394,43.776884,191.77,191.64,10.490826]
[1735605700579,23.776884,191.74,191.64,10.490826]
[1735605701296,23.776884,191.74,191.65,30.490826]
[1735605702300,23.776884,191.74,191.65,10.490826]
[1735605703009,23.776884,191.74,191.65,30.490826]
[1735605703504,23.776884,191.74,191.66,7.9567]
[1735605705609,2.6071,191.78,191.66,7.9567]
[1735605705786,2.6071,191.78,191.66,18.447526]
[1735605706105,23.776884,191.77,191.66,18.447526]
[1735605706493,23.776884,191.77,191.66,7.9567]
[1735605708278,20.0,191.71,191.66,7.9567]
[1735605708485,23.776884,191.74,191.66,7.9567]
[1735605708685,23.776884,191.75,191.66,7.9567]
[1735605709008,20.0,191.72,191.66,7.9567]
[1735605711689,12.06957178,191.8,191.66,18.447526]
[1735605712025,2.607,191.79,191.66,18.447526]
[1735605712211,23.776884,191.76,191.66,18.447526]
[1735605712809,23.776884,191.76,191.66,7.9567]
[1735605715109,22.607,191.79,191.66,18.447526]
[1735605715608,23.776884,191.78,191.66,18.447526]
[1735605715987,20.0,191.75,191.66,18.447526]
[1735605716688,20.0,191.75,191.66,7.9567]
[1735605720592,23.776884,191.74,191.66,7.9567]
[1735605721495,20.0,191.71,191.66,7.9567]
[1735605722812,23.776884,191.7,191.66,7.9567]
[1735605723014,23.776884,191.7,191.61,6.2397]
[1735605723320,26.385084,191.7,191.61,6.2397]
[1735605723648,20.0,191.67,191.61,6.2397]
[1735605727631,20.0,191.69,191.61,6.2397]
[1735605728931,23.776884,191.68,191.61,6.2397]
[1735605733719,20.0,191.73,191.61,6.2397]
[1735605733929,20.0,191.69,191.61,6.2397]
[1735605736831,23.776884,191.68,191.61,6.2397]
[1735605738829,20.0,191.65,191.61,6.2397]
[1735605740516,20.0,191.65,191.6,1.645]
[1735605743720,2.6078,191.73,191.6,1.645]
[1735605744235,20.0,191.71,191.6,1.645]
[1735605744435,2.6078,191.73,191.6,12.135826]
[1735605745440,23.776884,191.72,191.6,12.135826]
[1735605745742,20.0,191.69,191.61,17.039626]
[1735605745945,2.6074,191.76,191.62,10.490826]
[1735605746153,2.6074,191.76,191.64,1.6125]
[1735605746356,2.6074,191.76,191.64,12.103326]
[1735605746527,2.6074,191.76,191.65,6.5488]
[1735605746864,20.0,191.72,191.65,6.5488]
[1735605748426,14.97355618,191.8,191.65,6.5488]
[1735605748655,2.607,191.79,191.65,17.039626]
[1735605748829,23.776884,191.76,191.65,6.5488]
[1735605749525,20.0,191.75,191.65,17.039626]
[1735605751744,43.776884,191.76,191.65,6.5488]
[1735605752056,20.0,191.72,191.65,6.5488]
[1735605752349,20.0,191.73,191.65,6.5488]
[1735605756836,20.0,191.69,191.65,6.5488]
[1735605760248,2.6075,191.75,191.65,6.5488]
[1735605760627,22.6075,191.75,191.65,6.5488]
[1735605760951,23.776884,191.72,191.65,6.5488]
[1735605765339,23.776884,191.74,191.65,6.5488]
[1735605765742,20.0,191.77,191.65,6.5488]
[1735605765941,2.6071,191.78,191.66,10.490826]
[1735605766150,2.6071,191.78,191.67,12.013726]
[1735605766447,23.776884,191.77,191.68,20.0]
[1735605766656,2.6071,191.78,191.68,20.0]
[1735605767659,23.776884,191.77,191.68,20.0]
[1735605768465,43.776884,191.77,191.67,1.5229]
[1735605771652,43.776884,191.77,191.68,6.6437]
[1735605772267,26.383284,191.83,191.68,17.134526]
[1735605772467,2.6064,191.83,191.71,6.6437]
[1735605772659,20.0,191.81,191.72,1.5772]
[1735605772858,2.6064,191.83,191.72,1.5772]
[1735605773260,23.776884,191.82,191.72,1.5772]
[1735605773573,22.6064,191.83,191.72,1.5772]
[1735605774553,46.383284,191.83,191.72,1.5772]
[1735605774771,23.776884,191.82,191.72,1.5772]
[1735605775275,46.383284,191.83,191.72,1.5772]
[1735605775474,23.776884,191.82,191.72,1.5772]
[1735605776574,22.6064,191.83,191.72,1.5772]
[1735605782589,22.6064,191.83,191.72,12.068026]
[1735605782770,20.0,191.83,191.72,12.068026]
[1735605783086,20.0,191.83,191.74,10.490826]
[1735605783289,20.0,191.83,191.73,17.134526]
[1735605783481,20.0,191.83,191.74,1.5772]
[1735605783678,2.6056,191.89,191.76,8.2209]
[1735605784280,20.0,191.83,191.76,8.2209]
[1735605784673,2.6052,191.92,191.76,8.2209]
[1735605784867,23.776884,191.91,191.76,8.2209]
[1735605785067,23.776884,191.87,191.76,8.2209]
[1735605785767,23.776884,191.88,191.76,8.2209]
[1735605786074,22.6057,191.89,191.77,10.490826]
[1735605786273,22.6057,191.89,191.76,6.6437]
[1735605786274,2.6057,191.89,191.79,6.6093]
[1735605787093,23.776884,191.88,191.79,6.6093]
[1735605787271,2.6059,191.87,191.79,6.6093]
[1735605787479,23.776884,191.86,191.79,6.6093]
[1735605789381,2.6055,191.9,191.79,6.6093]
[1735605789602,23.776884,191.89,191.79,6.6093]
[1735605789972,2.6055,191.9,191.79,6.6093]
[1735605790391,23.776884,191.89,191.79,6.6093]
[1735605792682,23.776884,191.89,191.79,17.100126]
[1735605793691,20.0,191.91,191.79,17.100126]
[1735605793901,2.6045,191.97,191.82,6.6093]
[1735605794195,20.0,191.95,191.83,1.6272]
[1735605794594,20.0,191.91,191.83,1.6272]
[1735605796199,20.0,191.95,191.83,1.6272]
[1735605796574,23.776884,191.9,191.83,1.6272]
[1735605798093,2.6051,191.93,191.83,1.6272]
[1735605798394,23.776884,191.92,191.83,12.118026]
[1735605798805,23.776884,191.92,191.84,10.490826]
[1735605798981,2.6047,191.96,191.86,6.0519]
[1735605799188,2.6047,191.96,191.87,1.6008]
[1735605799499,23.776884,191.95,191.87,1.6008]
[1735605800198,20.0,191.99,191.87,1.6008]
[1735605800399,2.604,192.01,191.87,12.091626]
[1735605800579,22.604,192.01,191.87,12.091626]
[1735605800780,22.604,192.01,191.87,1.6008]
[1735605801286,20.0,191.97,191.87,1.6008]
[1735605801600,20.0,191.97,191.87,12.091626]
[1735605801896,20.0,191.97,191.87,1.6008]
[1735605802075,22.604,192.01,191.87,12.091626]
[1735605802698,23.776884,191.96,191.87,1.6008]
[1735605802915,23.776884,191.98,191.87,1.6008]
[1735605803083,23.776884,191.94,191.87,1.6008]
[1735605803500,2.6043,191.99,191.87,1.6008]
[1735605804006,23.776884,191.94,191.87,1.6008]
[1735605804802,26.381984,191.94,191.87,1.6008]
[1735605805300,20.0,191.91,191.87,1.6008]
[1735605805604,23.776884,191.9,191.87,1.6008]
[1735605805988,23.776884,191.9,191.79,7.6257]
[1735605806687,26.382384,191.9,191.79,7.6257]
[1735605819102,20.0,191.87,191.79,7.6257]
[1735605819309,2.6055,191.9,191.79,7.6257]
[1735605819508,43.776884,191.86,191.79,7.6257]
[1735605821920,20.0,191.77,191.74,7.9563]
[1735605822415,23.776884,191.76,191.74,7.9563]
[1735605823614,23.776884,191.76,191.74,1.5773]
[1735605833520,23.776884,191.76,191.7,6.379]
[1735605833908,20.0,191.73,191.7,6.379]
[1735605834117,20.0,191.73,191.69,1.5188]
[1735605834808,23.776884,191.72,191.69,1.5188]
[1735605835015,23.776884,191.72,191.66,6.4737]
[1735605835211,20.0,191.69,191.66,6.4737]
[1735605835607,23.776884,191.68,191.64,1.5188]
[1735605837024,23.776884,191.68,191.61,6.4737]
[1735605837633,20.0,191.65,191.61,6.4737]
[1735605838930,20.0,191.65,191.6,1.5188]
[1735605840105,23.776884,191.64,191.6,1.5188]
[1735605843435,23.776884,191.64,191.56,7.9925]
[1735605845435,20.0,191.61,191.56,7.9925]
[1735605845730,23.776884,191.6,191.56,7.9925]
[1735605845938,23.776884,191.6,191.45,0.78302569]
[1735605845939,23.776884,191.6,191.51,7.688]
[1735605847720,26.386484,191.6,191.51,7.688]
[1735605847926,23.776884,191.56,191.47,6.148]
[1735605848424,23.776884,191.52,191.47,6.148]
[1735605848630,23.776884,191.52,191.46,1.54]
[1735605852337,2.6102,191.56,191.46,1.54]
[1735605853246,4.1601,191.59,191.46,1.54]
[1735605853930,23.776884,191.58,191.46,1.54]
[1735605855037,20.0,191.55,191.46,1.54]
[1735605855634,23.776884,191.54,191.46,1.54]
[1735605856044,23.776884,191.5,191.46,1.54]
[1735605856749,23.776884,191.5,191.42,7.688]
[1735605858756,20.0,191.5,191.42,7.688]
[1735605859858,20.0,191.51,191.42,7.688]
[1735605862758,23.776884,191.5,191.42,7.688]
[1735605866060,20.929125,191.55,191.42,7.688]
[1735605866061,2.6104,191.54,191.42,7.688]
[1735605866954,2.61,191.57,191.43,16.42658293]
[1735605867150,23.776884,191.56,191.43,16.42658293]
[1735605867462,23.776884,191.56,191.44,16.42658293]
[1735605867641,23.776884,191.56,191.43,17.99168293]
[1735605868048,20.0,191.53,191.43,17.99168293]
[1735605868447,20.0,191.53,191.44,16.42658293]
[1735605869357,20.0,191.53,191.43,31.05128293]
[1735605869555,20.0,191.53,191.44,16.42658293]
[1735605870462,20.0,191.53,191.43,31.05128293]
[1735605870658,23.776884,191.52,191.43,1.5651]
[1735605872065,20.0,191.49,191.43,1.5651]
[1735605873063,23.776884,191.48,191.43,1.5651]
[1735605880475,2.6108,191.51,191.43,1.5651]
[1735605880773,23.776884,191.5,191.43,1.5651]
[1735605904468,20.0,191.47,191.43,1.5651]
[1735605904783,2.6108,191.51,191.43,1.5651]
[1735605904784,8.14395618,191.55,191.46,1.5277]
[1735605905165,23.776884,191.55,191.46,1.5277]
[1735605905573,43.776884,191.53,191.46,1.5277]
[1735605907273,46.387484,191.53,191.46,1.5277]
[1735605907476,46.387484,191.53,191.45,6.1318]
[1735605907681,46.387484,191.53,191.41,1.5277]
[1735605907989,54.53144018,191.53,191.41,1.5277]
[1735605908567,20.0,191.48,191.41,1.5277]
[1735605908788,23.776884,191.47,191.41,1.5277]
[1735605910897,2.6108,191.51,191.41,1.5277]
[1735605911299,20.0,191.47,191.41,1.5277]
[1735605911681,23.776884,191.5,191.41,1.5277]
[1735605917601,10.75435618,191.54,191.41,1.5277]
[1735605917783,8.14395618,191.54,191.43,10.51527182]
[1735605918097,8.14395618,191.54,191.44,1.5277]
[1735605918398,8.14395618,191.54,191.45,16.64707182]
[1735605918700,17.79314133,191.58,191.49,12.04297182]
[1735605918894,17.79314133,191.58,191.5,30.51527182]
[1735605919195,8.14395618,191.58,191.51,6.3699]
[1735605919398,16.28791237,191.6,191.51,6.3699]
[1735605919611,8.14395618,191.62,191.51,6.3699]
[1735605920097,2.6091,191.64,191.51,6.3699]
[1735605920395,20.0,191.62,191.51,6.3699]
[1735605920787,23.776884,191.61,191.51,6.3699]
[1735605922605,23.776884,191.63,191.51,6.3699]
[1735605923279,23.776884,191.63,191.51,16.88517182]
[1735605923983,23.776884,191.63,191.51,6.3699]
[1735605926614,23.776884,191.59,191.51,6.3699]
[1735605926778,23.776884,191.57,191.51,6.3699]
[1735605932812,2.6094,191.62,191.51,6.3699]
[1735605932986,8.14395618,191.65,191.51,6.3699]
[1735605933186,8.14395618,191.65,191.51,16.88517182]
[1735605933406,20.0,191.64,191.51,16.88517182]
[1735605933809,23.776884,191.63,191.51,6.3699]
[1735605935399,23.776884,191.63,191.52,1.6153]
[1735605936510,23.776884,191.63,191.54,20.0]
[1735605936889,20.0,191.68,191.54,20.0]
[1735605937090,20.0,191.68,191.55,7.663]
[1735605937289,2.6083,191.69,191.55,7.663]
[1735605937499,23.776884,191.68,191.55,7.663]
[1735605937909,20.0,191.66,191.55,7.663]
[1735605938090,23.776884,191.65,191.55,7.663]
[1735605938290,20.0,191.66,191.55,7.663]
[1735605938504,20.0,191.66,191.55,20.7139]
[1735605938910,22.6083,191.69,191.58,20.0]
[1735605939118,23.776884,191.68,191.59,6.0477]
[1735605939412,23.776884,191.68,191.6,1.6153]
[1735605939791,20.0,191.69,191.6,1.6153]
[1735605940592,23.776884,191.68,191.6,1.6153]
[1735605942419,20.0,191.66,191.6,1.6153]
[1735605942714,20.0,191.68,191.6,1.6153]
[1735605943913,23.776884,191.72,191.6,1.6153]
[1735605944119,20.0,191.66,191.6,1.6153]
[1735605945519,1.5735,191.76,191.6,12.13057182]
[1735605945520,2.6074,191.76,191.6,12.13057182]
[1735605945693,2.6074,191.76,191.61,6.0477]
[1735605945901,20.0,191.72,191.62,1.6153]
[1735605946906,23.776884,191.69,191.62,1.6153]
[1735605951305,2.6076,191.75,191.62,1.6153]
[1735605951824,20.0,191.71,191.62,1.6153]
[1735605952123,23.776884,191.74,191.62,1.6153]
[1735605952526,1.5735,191.8,191.62,1.6153]
[1735605952822,20.0,191.72,191.62,1.6153]
[1735605953025,23.776884,191.71,191.62,1.6153]
[1735605954503,20.0,191.7,191.62,1.6153]
[1735605954702,23.776884,191.69,191.62,1.6153]
[1735605955007,2.6079,191.73,191.62,1.6153]
[1735605955220,2.6074,191.76,191.62,1.6153]
[1735605955638,22.6074,191.76,191.62,1.6153]
[1735605955937,43.776884,191.72,191.62,1.6153]
[1735605956422,2.6074,191.76,191.62,1.6153]